bitfinex-derivatives/quotes_BNBF0:USTF0_20260110
["timestamp","ask_amount","ask_price","bid_price","bid_amount"]
[1768082328365,0.19220891,906.06,904.46,2.61]
[1768082328565,0.19220891,906.06,904.47,0.72716997]
[1768082328766,0.19220891,906.06,904.48,0.72716997]
[1768082328965,0.19220891,906.06,904.49,0.72716997]
[1768082329164,0.19220891,906.06,904.5,0.72716997]
[1768082329367,0.19220891,906.06,904.51,0.72716997]
[1768082329564,0.19220891,906.06,904.52,0.72716997]
[1768082329775,0.19220891,906.06,904.53,0.72716997]
[1768082329974,0.19220891,906.06,904.54,0.72716997]
[1768082330170,0.19220891,906.06,904.55,0.72716997]
[1768082330375,0.19220891,906.06,904.56,0.72716997]
[1768082330576,0.19220891,906.06,904.57,0.72716997]
[1768082330774,0.19220891,906.06,904.58,0.72716997]
[1768082331072,0.19220891,906.06,904.59,0.72716997]
[1768082331271,0.19220891,906.06,904.6,0.72716997]
[1768082331471,0.19220891,906.06,904.61,0.72716997]
[1768082331771,0.19220891,906.06,904.62,0.72716997]
[1768082331971,0.19220891,906.06,904.63,0.72716997]
[1768082332172,0.19220891,906.06,904.64,0.72716997]
[1768082332376,0.19220891,906.06,904.65,0.72716997]
[1768082332577,0.19220891,906.06,904.66,0.72716997]
[1768082332877,0.19220891,906.06,904.67,0.72716997]
[1768082333079,0.19220891,906.06,904.68,0.72716997]
[1768082333275,0.19220891,906.06,904.69,0.72716997]
[1768082333479,0.19220891,906.06,904.7,0.72716997]
[1768082333673,0.19220891,906.06,904.71,0.72716997]
[1768082333974,0.19220891,906.06,904.72,0.72716997]
[1768082334179,0.19220891,906.06,904.73,0.72716997]
[1768082334378,0.19220891,906.06,904.74,0.72716997]
[1768082334574,0.19220891,906.06,904.75,0.72716997]
[1768082334778,0.19220891,906.06,904.76,0.72716997]
[1768082335074,0.19220891,906.06,904.77,0.72716997]
[1768082335275,0.19220891,906.06,904.78,0.72716997]
[1768082335474,0.19220891,906.06,904.79,0.72716997]
[1768082335675,0.19220891,906.06,904.8,0.72716997]
[1768082335875,0.19220891,906.06,904.81,0.72716997]
[1768082336081,0.19220891,906.06,904.82,0.72716997]
[1768082336280,0.19220891,906.06,904.83,0.72716997]
[1768082336486,0.19220891,906.06,904.62,0.82803881]
[1768082336487,0.19220891,906.06,904.84,0.72716997]
[1768082336674,0.19220891,906.06,904.85,0.72716997]
[1768082336874,0.19220891,906.06,904.86,0.72716997]
[1768082337076,0.19220891,906.06,904.87,0.72716997]
[1768082337380,0.19220891,906.06,904.88,0.72716997]
[1768082337577,0.19220891,906.06,904.89,0.72716997]
[1768082337777,0.19220891,906.06,904.9,0.72716997]
[1768082337980,0.19220891,906.06,904.61,0.82803881]
[1768082338181,0.19220891,906.06,904.62,0.72352787]
[1768082338477,0.19220891,906.06,904.63,0.72352787]
[1768082338680,0.19220891,906.06,904.6,0.82803881]
[1768082338681,0.19220891,906.06,904.72,0.82803881]
[1768082338880,0.19220891,906.06,904.73,0.72352787]
[1768082339082,0.19220891,906.06,904.74,0.72352787]
[1768082339279,0.19220891,906.06,904.75,0.72352787]
[1768082339483,0.19220891,906.06,904.76,0.72352787]
[1768082339684,0.19220891,906.06,904.77,0.72352787]
[1768082339883,0.19220891,906.06,904.78,0.72352787]
[1768082340083,0.19220891,906.06,904.79,0.72352787]
[1768082340279,0.19220891,906.06,904.8,0.72352787]
[1768082340484,0.19220891,906.06,904.81,0.72352787]
[1768082340684,0.19220891,906.06,904.82,0.72352787]
[1768082340884,0.19220891,906.06,904.83,0.72352787]
[1768082341079,0.19220891,906.06,904.84,0.72352787]
[1768082341283,0.19220891,906.06,904.85,0.72352787]
[1768082341483,0.19220891,906.06,904.86,0.72352787]
[1768082341680,0.19220891,906.06,904.87,0.72352787]
[1768082341880,0.19220891,906.06,904.71,0.82803881]
[1768082341881,0.19220891,906.06,904.88,0.72352787]
[1768082342081,0.19220891,906.06,904.89,0.72352787]
[1768082342281,0.19220891,906.06,904.9,0.72352787]
[1768082342486,0.19220891,906.06,904.91,0.72352787]
[1768082342782,0.19220891,906.06,904.92,0.72352787]
[1768082342981,0.19220891,906.06,904.93,0.72352787]
[1768082343283,0.19220891,906.06,904.64,0.82803881]
[1768082343485,0.19220891,906.06,904.65,0.72201681]
[1768082343787,0.19220891,906.06,904.66,0.72201681]
[1768082343986,0.19220891,906.06,904.67,0.72201681]
[1768082344193,0.19220891,906.06,904.68,0.72201681]
[1768082344394,0.19220891,906.06,904.69,0.72201681]
[1768082344595,0.19220891,906.06,904.7,0.72201681]
[1768082344787,0.19220891,906.06,904.56,0.82803881]
[1768082344788,0.19220891,906.06,904.71,0.72201681]
[1768082345086,0.19220891,906.06,904.72,0.72201681]
[1768082345287,0.19220891,906.06,904.73,0.72201681]
[1768082345487,0.19220891,906.06,904.74,0.72201681]
[1768082345793,0.19220891,906.06,904.75,0.72201681]
[1768082346087,0.19220891,906.06,904.76,0.72201681]
[1768082346284,0.19220891,906.06,904.77,0.72201681]
[1768082346484,0.19220891,906.06,904.78,0.72201681]
[1768082346689,0.19220891,906.06,904.79,0.72201681]
[1768082346889,0.19220891,906.06,904.8,0.72201681]
[1768082347094,0.19220891,906.06,904.81,0.72201681]
[1768082347287,0.19220891,906.06,904.82,0.72201681]
[1768082347496,0.19220891,906.06,904.83,0.72201681]
[1768082347686,0.19220891,906.06,904.84,0.72201681]
[1768082347896,0.19220891,906.06,904.55,0.82803881]
[1768082348088,0.19220891,906.06,904.56,0.7216882]
[1768082348288,0.19220891,906.06,904.57,0.7216882]
[1768082348599,0.19220891,906.06,904.58,0.7216882]
[1768082348787,0.19220891,906.06,904.59,0.7216882]
[1768082348990,0.19220891,906.06,904.6,0.7216882]
[1768082349198,0.19220891,906.06,904.61,0.7216882]
[1768082349386,0.19220891,906.06,904.62,0.7216882]
[1768082349588,0.19220891,906.06,904.63,0.7216882]
[1768082349888,0.19220891,906.06,904.64,0.7216882]
[1768082350088,0.19220891,906.06,904.65,0.7216882]
[1768082350287,0.19220891,906.06,904.66,0.7216882]
[1768082350489,0.19220891,906.06,904.67,0.7216882]
[1768082350692,0.19220891,906.06,904.68,0.7216882]
[1768082350890,0.19220891,906.06,904.46,2.61]
[1768082350891,0.19220891,906.06,904.69,0.7216882]
[1768082351090,0.19220891,906.06,904.7,0.7216882]
[1768082351288,0.19220891,906.06,904.71,0.7216882]
[1768082351493,0.19220891,906.06,904.72,0.7216882]
[1768082351789,0.19220891,906.06,904.73,0.7216882]
[1768082352001,0.19220891,906.06,904.74,0.7216882]
[1768082352190,0.19220891,906.06,904.46,2.61]
[1768082352394,0.19220891,906.06,904.47,0.72168492]
[1768082352592,0.19220891,906.06,904.48,0.72168492]
[1768082352890,0.19220891,906.06,904.49,0.72168492]
[1768082353195,0.19220891,906.06,904.5,0.72168492]
[1768082353391,0.19220891,906.06,904.51,0.72168492]
[1768082353590,0.19220891,906.06,904.52,0.72168492]
[1768082353896,0.19220891,906.06,904.53,0.72168492]
[1768082354095,0.19220891,906.06,904.54,0.72168492]
[1768082354291,0.19220891,906.06,904.55,0.72168492]
[1768082354492,0.19220891,906.06,904.56,0.72168492]
[1768082354697,0.19220891,906.06,904.57,0.72168492]
[1768082354995,0.19220891,906.06,904.58,0.72168492]
[1768082355192,0.19220891,906.06,904.59,0.72168492]
[1768082355394,0.19220891,906.06,904.6,0.72168492]
[1768082355593,0.19220891,906.06,904.61,0.72168492]
[1768082355790,0.19220891,906.06,904.62,0.72168492]
[1768082355992,0.19220891,906.06,904.63,0.72168492]
[1768082356191,0.19220891,906.06,904.64,0.72168492]
[1768082356490,0.19220891,906.06,904.65,0.72168492]
[1768082356694,0.19220891,906.06,904.66,0.72168492]
[1768082356894,0.19220891,906.06,904.67,0.72168492]
[1768082357091,0.19220891,906.06,904.68,0.72168492]
[1768082357292,0.19220891,906.06,904.69,0.72168492]
[1768082357595,0.19220891,906.06,904.7,0.72168492]
[1768082357794,0.19220891,906.06,904.71,0.72168492]
[1768082357991,0.19220891,906.06,904.72,0.72168492]
[1768082358194,0.19220891,906.06,904.73,0.72168492]
[1768082358495,0.19220891,906.06,904.74,0.72168492]
[1768082358691,0.19220891,906.06,904.75,0.72168492]
[1768082358890,0.19220891,906.06,904.46,3.43803881]
[1768082359092,0.19220891,906.06,904.47,0.72183767]
[1768082359291,0.19220891,906.06,904.48,0.72183767]
[1768082359495,0.19220891,906.06,904.49,0.72183767]
[1768082359691,0.19220891,906.06,904.5,0.72183767]
[1768082359896,0.19220891,906.06,904.51,0.72183767]
[1768082360092,0.19220891,906.06,904.52,0.72183767]
[1768082360292,0.19220891,906.06,904.53,0.72183767]
[1768082360496,0.19220891,906.06,904.54,0.72183767]
[1768082360792,0.19220891,906.06,904.55,0.72183767]
[1768082360992,0.19220891,906.06,904.56,0.72183767]
[1768082361297,0.19220891,906.06,904.57,0.72183767]
[1768082361494,0.19220891,906.06,904.58,0.72183767]
[1768082361692,0.19220891,906.06,904.59,0.72183767]
[1768082361992,0.19220891,906.06,904.6,0.72183767]
[1768082362293,0.19220891,906.06,904.61,0.72183767]
[1768082362496,0.19220891,906.06,904.62,0.72183767]
[1768082362798,0.19220891,906.06,904.63,0.72183767]
[1768082362996,0.19220891,906.06,904.64,0.72183767]
[1768082363296,0.19220891,906.06,904.65,0.72183767]
[1768082363497,0.19220891,906.06,904.66,0.72183767]
[1768082363696,0.19220891,906.06,904.67,0.72183767]
[1768082363895,0.19220891,906.06,904.68,0.72183767]
[1768082364098,0.19220891,906.06,904.69,0.72183767]
[1768082364298,0.19220891,906.06,904.7,0.72183767]
[1768082364499,0.19220891,906.06,904.71,0.72183767]
[1768082364700,0.19220891,906.06,904.72,0.72183767]
[1768082364896,0.19220891,906.06,904.73,0.72183767]
[1768082365094,0.19220891,906.06,904.57,2.197]
[1768082365399,0.19220891,906.06,904.58,0.71900643]
[1768082365696,0.19220891,906.06,904.59,0.71900643]
[1768082366000,0.19220891,906.06,904.6,0.71900643]
[1768082366198,0.19220891,906.06,904.61,0.71900643]
[1768082366403,0.19220891,906.06,904.62,0.71900643]
[1768082366698,0.19220891,906.06,904.63,0.71900643]
[1768082366899,0.19220891,906.06,904.64,0.71900643]
[1768082367099,0.19220891,906.06,904.65,0.71900643]
[1768082367298,0.19220891,906.06,904.66,0.71900643]
[1768082367503,0.19220891,906.06,904.67,0.71900643]
[1768082367803,0.19220891,906.06,904.68,0.71900643]
[1768082368001,0.19220891,906.06,904.69,0.71900643]
[1768082368204,0.19220891,906.06,904.7,0.71900643]
[1768082368398,0.19220891,906.06,904.71,0.71900643]
[1768082368601,0.19220891,906.06,904.72,0.71900643]
[1768082368902,0.19220891,906.06,904.73,0.71900643]
[1768082369102,0.19220891,906.06,904.74,0.71900643]
[1768082369302,0.19220891,906.06,904.75,0.71900643]
[1768082369500,0.19220891,906.06,904.57,2.197]
[1768082369698,0.19220891,906.06,904.58,0.71926973]
[1768082369899,0.19220891,906.06,904.59,0.71926973]
[1768082370102,0.19220891,906.06,904.6,0.71926973]
[1768082370403,0.19220891,906.06,904.61,0.71926973]
[1768082370699,0.19220891,906.06,904.62,0.71926973]
[1768082370903,0.19220891,906.06,904.63,0.71926973]
[1768082371100,0.19220891,906.06,904.64,0.71926973]
[1768082371300,0.19220891,906.06,904.65,0.71926973]
[1768082371503,0.19220891,906.06,904.66,0.71926973]
[1768082371700,0.19220891,906.06,904.67,0.71926973]
[1768082371900,0.19220891,906.06,904.68,0.71926973]
[1768082372102,0.19220891,906.06,904.69,0.71926973]
[1768082372402,0.19220891,906.06,904.7,0.71926973]
[1768082372603,0.19220891,906.06,904.71,0.71926973]
[1768082372906,0.19220891,906.06,904.72,0.71926973]
[1768082373104,0.19220891,906.06,904.73,0.71926973]
[1768082373308,0.19220891,906.06,904.74,0.71926973]
[1768082373505,0.19220891,906.06,904.75,0.71926973]
[1768082373704,0.19220891,906.06,904.76,0.71926973]
[1768082373909,0.19220891,906.06,904.57,2.197]
[1768082373910,0.19220891,906.06,904.77,0.71926973]
[1768082374205,0.19220891,906.06,904.78,0.71926973]
[1768082374409,0.19220891,906.06,904.79,0.71926973]
[1768082374610,0.19220891,906.06,904.8,0.71926973]
[1768082374909,0.19220891,906.06,904.81,0.71926973]
[1768082375209,0.19220891,906.06,904.82,0.71926973]
[1768082375410,0.19220891,906.06,904.83,0.71926973]
[1768082375709,0.19220891,906.06,904.84,0.71926973]
[1768082375909,0.19220891,906.06,904.57,2.197]
[1768082376111,0.19220891,906.06,904.58,0.71979916]
[1768082376307,0.19220891,906.06,904.59,0.71979916]
[1768082376510,0.19220891,906.06,904.6,0.71979916]
[1768082376711,0.19220891,906.06,904.61,0.71979916]
[1768082376906,0.19220891,906.06,904.62,0.71979916]
[1768082377110,0.19220891,906.06,904.63,0.71979916]
[1768082377306,0.19220891,906.06,904.64,0.71979916]
[1768082377508,0.19220891,906.06,904.65,0.71979916]
[1768082377807,0.19220891,906.06,904.66,0.71979916]
[1768082378005,0.19220891,906.06,904.67,0.71979916]
[1768082378207,0.19220891,906.06,904.68,0.71979916]
[1768082378411,0.19220891,906.06,904.69,0.71979916]
[1768082378706,0.19220891,906.06,904.7,0.71979916]
[1768082378908,0.19220891,906.06,904.71,0.71979916]
[1768082379108,0.19220891,906.06,904.72,0.71979916]
[1768082379308,0.19220891,906.06,904.73,0.71979916]
[1768082379511,0.19220891,906.06,904.74,0.71979916]
[1768082379814,0.19220891,906.06,904.75,0.71979916]
[1768082380009,0.19220891,906.06,904.76,0.71979916]
[1768082380210,0.19220891,906.06,904.77,0.71979916]
[1768082380406,0.19220891,906.06,904.78,0.71979916]
[1768082380611,0.19220891,906.06,904.79,0.71979916]
[1768082380809,0.19220891,906.06,904.8,0.71979916]
[1768082381009,0.19220891,906.06,904.81,0.71979916]
[1768082381313,0.19220891,906.06,904.82,0.71979916]
[1768082381510,0.19220891,906.06,904.83,0.71979916]
[1768082381710,0.19220891,906.06,904.84,0.71979916]
[1768082381911,0.19220891,906.06,904.85,0.71979916]
[1768082382110,0.19220891,906.06,904.57,2.197]
[1768082382310,0.19220891,906.06,904.58,0.72011686]
[1768082382514,0.19220891,906.06,904.59,0.72011686]
[1768082382714,0.19220891,906.06,904.6,0.72011686]
[1768082383011,0.19220891,906.06,904.61,0.72011686]
[1768082383214,0.19220891,906.06,904.62,0.72011686]
[1768082383413,0.19220891,906.06,904.63,0.72011686]
[1768082383715,0.19220891,906.06,904.64,0.72011686]
[1768082383915,0.19220891,906.06,904.65,0.72011686]
[1768082384110,0.19220891,906.06,904.66,0.72011686]
[1768082384414,0.19220891,906.06,904.67,0.72011686]
[1768082384615,0.19220891,906.06,904.68,0.72011686]
[1768082384814,0.19220891,906.06,904.69,0.72011686]
[1768082385115,0.19220891,906.06,904.7,0.72011686]
[1768082385314,0.19220891,906.06,904.71,0.72011686]
[1768082385514,0.19220891,906.06,904.72,0.72011686]
[1768082385712,0.19220891,906.06,904.73,0.72011686]
[1768082386017,0.19220891,906.06,904.74,0.72011686]
[1768082386214,0.19220891,906.06,904.75,0.72011686]
[1768082386414,0.19220891,906.06,904.76,0.72011686]
[1768082386612,0.19220891,906.06,904.77,0.72011686]
[1768082386916,0.19220891,906.06,904.78,0.72011686]
[1768082387112,0.19220891,906.06,904.79,0.72011686]
[1768082387414,0.19220891,906.06,904.8,0.72011686]
[1768082387615,0.19220891,906.06,904.81,0.72011686]
[1768082387817,0.19220891,906.06,904.82,0.72011686]
[1768082388017,0.19220891,906.06,904.83,0.72011686]
[1768082388317,0.19220891,906.06,904.84,0.72011686]
[1768082388513,0.19220891,906.06,904.85,0.72011686]
[1768082388718,0.19220891,906.06,904.86,0.72011686]
[1768082389018,0.19220891,906.06,904.87,0.72011686]
[1768082389317,0.19220891,906.06,904.88,0.72011686]
[1768082389517,0.19220891,906.06,904.89,0.72011686]
[1768082389816,0.19220891,906.06,904.9,0.72011686]
[1768082390116,0.19220891,906.06,904.91,0.72011686]
[1768082390318,0.19220891,906.06,904.92,0.72011686]
[1768082390518,0.19220891,906.06,904.93,0.72011686]
[1768082390713,0.19220891,906.06,904.94,0.72011686]
[1768082390918,0.19220891,906.06,904.95,0.72011686]
[1768082391113,0.19220891,906.06,904.96,0.72011686]
[1768082391314,0.19220891,906.06,904.97,0.72011686]
[1768082391618,0.19220891,906.06,904.98,0.72011686]
[1768082391818,0.19220891,906.06,904.69,0.82803881]
[1768082392019,0.19220891,906.06,904.7,0.72046474]
[1768082392218,0.19220891,906.06,904.71,0.72046474]
[1768082392419,0.19220891,906.06,904.72,0.72046474]
[1768082392616,0.19220891,906.06,904.73,0.72046474]
[1768082392821,0.19220891,906.06,904.74,0.72046474]
[1768082393121,0.19220891,906.06,904.75,0.72046474]
[1768082393421,0.19220891,906.06,904.76,0.72046474]
[1768082393621,0.19220891,906.06,904.77,0.72046474]
[1768082393823,0.19220891,906.06,904.78,0.72046474]
[1768082394020,0.19220891,906.06,904.79,0.72046474]
[1768082394223,0.19220891,906.06,904.8,0.72046474]
[1768082394423,0.19220891,906.06,904.81,0.72046474]
[1768082394619,0.19220891,906.06,904.82,0.72046474]
[1768082394819,0.19220891,906.06,904.83,0.72046474]
[1768082395017,0.19220891,906.06,904.84,0.72046474]
[1768082395220,0.19220891,906.06,904.85,0.72046474]
[1768082395423,0.19220891,906.06,904.86,0.72046474]
[1768082395620,0.19220891,906.06,904.87,0.72046474]
[1768082395820,0.19220891,906.06,904.88,0.72046474]
[1768082396020,0.19220891,906.06,904.89,0.72046474]
[1768082396221,0.19220891,906.06,904.9,0.72046474]
[1768082396426,0.19220891,906.06,904.91,0.72046474]
[1768082396625,0.19220891,906.06,904.92,0.72046474]
[1768082396823,0.19220891,906.06,904.93,0.72046474]
[1768082397023,0.19220891,906.06,904.94,0.72046474]
[1768082397226,0.19220891,906.06,904.95,0.72046474]
[1768082397424,0.19220891,906.06,904.96,0.72046474]
[1768082397624,0.19220891,906.06,904.97,0.72046474]
[1768082397828,0.19220891,906.06,904.91,2.342]
[1768082398028,0.19220891,906.06,904.92,0.72005509]
[1768082398325,0.19220891,906.06,904.93,0.72005509]
[1768082398525,0.19220891,906.06,904.94,0.72005509]
[1768082398724,0.19220891,906.06,904.95,0.72005509]
[1768082398927,0.19220891,906.06,904.96,0.72005509]
[1768082399126,0.19220891,906.06,904.91,2.342]
[1768082399322,0.19220891,906.06,904.92,0.71997322]
[1768082399524,0.19220891,906.06,904.93,0.71997322]
[1768082399729,0.19220891,906.06,904.94,0.71997322]
[1768082399930,0.19220891,906.06,904.95,0.71997322]
[1768082400130,0.19220891,906.06,904.96,0.71997322]
[1768082400431,0.19220891,906.06,904.97,0.71991079]
[1768082400727,0.19220891,906.06,904.98,0.71991079]
[1768082400931,0.19220891,906.06,904.99,0.71991079]
[1768082401230,0.19220891,906.06,905.0,0.71991079]
[1768082401430,0.19220891,906.06,905.01,0.71991079]
[1768082401630,0.19220891,906.06,904.91,2.342]
[1768082401830,0.19220891,906.06,904.92,0.71983511]
[1768082402031,0.19220891,906.06,904.91,2.342]
[1768082404731,0.19220891,906.06,904.92,0.7198443]
[1768082405032,0.19220891,906.06,904.93,0.7198443]
[1768082405226,0.19220891,906.06,904.94,0.7198443]
[1768082405430,0.19220891,906.06,904.95,0.7198443]
[1768082405627,0.19220891,906.06,904.91,2.342]
[1768082405829,0.19220891,906.06,904.92,0.71981597]
[1768082406027,0.19220891,906.06,904.93,0.71981597]
[1768082406226,0.19220891,906.06,904.94,0.71981597]
[1768082406527,0.19220891,906.06,904.95,0.71981597]
[1768082406730,0.19220891,906.06,904.91,2.342]
[1768082406926,0.19220891,906.06,904.92,0.71979569]
[1768082407127,0.19220891,906.06,904.93,0.71979569]
[1768082407431,0.19220891,906.06,904.94,0.71979569]
[1768082407627,0.19220891,906.06,904.95,0.71979569]
[1768082407831,0.19220891,906.06,904.91,2.342]
[1768082408032,0.19220891,906.06,904.92,0.71978307]
[1768082408232,0.19220891,906.06,904.93,0.71978307]
[1768082408436,0.19220891,906.06,904.94,0.71978307]
[1768082408632,0.19220891,906.06,904.95,0.71978307]
[1768082408828,0.19220891,906.06,904.96,0.71978307]
[1768082409135,0.19220891,906.06,904.91,2.342]
[1768082409434,0.19220891,906.06,904.92,0.71979901]
[1768082409733,0.19220891,906.06,904.91,2.342]
[1768082409734,0.19220891,906.06,904.93,0.71979901]
[1768082410032,0.19220891,906.06,904.94,0.71979901]
[1768082410332,0.19220891,906.06,904.95,0.71979901]
[1768082410628,0.19220891,906.06,904.96,0.71979901]
[1768082410833,0.19220891,906.06,904.91,2.342]
[1768082411033,0.19220891,906.06,904.92,0.71979128]
[1768082411228,0.19220891,906.06,904.93,0.71979128]
[1768082411433,0.19220891,906.06,904.94,0.71979128]
[1768082411635,0.19220891,906.06,904.95,0.71979128]
[1768082411834,0.19220891,906.06,904.96,0.71979128]
[1768082412034,0.19220891,906.06,904.91,2.342]
[1768082412235,0.19220891,906.06,904.92,0.71984407]
[1768082412534,0.19220891,906.06,904.93,0.71984407]
[1768082412731,0.19220891,906.06,904.94,0.71984407]
[1768082412934,0.19220891,906.06,904.95,0.71984407]
[1768082413136,0.19220891,906.06,904.96,0.71984407]
[1768082413334,0.19220891,906.06,904.97,0.71984407]
[1768082413535,0.19220891,906.06,904.98,0.71984407]
[1768082413838,0.19220891,906.06,904.99,0.71984407]
[1768082414032,0.19220891,906.06,905.0,0.71984407]
[1768082414332,0.19220891,906.06,905.01,0.71984407]
[1768082414536,0.19220891,906.06,904.91,2.342]
[1768082414737,0.19220891,906.06,904.92,0.71991215]
[1768082414936,0.19220891,906.06,904.93,0.71991215]
[1768082415135,0.19220891,906.06,904.94,0.71991215]
[1768082415333,0.19220891,906.06,904.95,0.71991215]
[1768082415537,0.19220891,906.06,904.96,0.71991215]
[1768082415833,0.19220891,906.06,904.97,0.71991215]
[1768082416038,0.19220891,906.06,904.98,0.71991215]
[1768082416239,0.19220891,906.06,904.99,0.71991215]
[1768082416440,0.19220891,906.06,905.0,0.71991215]
[1768082416639,0.19220891,906.06,905.01,0.71991215]
[1768082416841,0.19220891,906.06,904.91,2.342]
[1768082417139,0.19220891,906.06,904.92,0.72002634]
[1768082417336,0.19220891,906.06,904.93,0.72002634]
[1768082417638,0.19220891,906.06,904.94,0.72002634]
[1768082417937,0.19220891,906.06,904.95,0.72002634]
[1768082418241,0.19220891,906.06,904.96,0.72002634]
[1768082418440,0.19220891,906.06,904.97,0.72002634]
[1768082418740,0.19220891,906.06,904.98,0.72002634]
[1768082418939,0.19220891,906.06,904.99,0.72002634]
[1768082419141,0.19220891,906.06,905.0,0.72002634]
[1768082419438,0.19220891,906.06,905.01,0.72002634]
[1768082419638,0.19220891,906.06,904.91,2.342]
[1768082419839,0.19220891,906.06,904.92,0.72013806]
[1768082420142,0.19220891,906.06,904.93,0.72013806]
[1768082420343,0.19220891,906.06,904.94,0.72013806]
[1768082420539,0.19220891,906.06,904.95,0.72013806]
[1768082420743,0.19220891,906.06,904.96,0.72013806]
[1768082421043,0.19220891,906.06,904.97,0.72013806]
[1768082421243,0.19220891,906.06,904.98,0.72013806]
[1768082421440,0.19220891,906.06,904.99,0.72013806]
[1768082421643,0.19220891,906.06,905.0,0.72013806]
[1768082421840,0.19220891,906.06,905.01,0.72013806]
[1768082422140,0.19220891,906.06,905.02,0.72013806]
[1768082422340,0.19220891,906.06,904.91,2.342]
[1768082422540,0.19220891,906.06,904.92,0.72023148]
[1768082422744,0.19220891,906.06,904.93,0.72023148]
[1768082422944,0.19220891,906.06,904.94,0.72023148]
[1768082423240,0.19220891,906.06,904.95,0.72023148]
[1768082423444,0.19220891,906.06,904.96,0.72023148]
[1768082423644,0.19220891,906.06,904.97,0.72023148]
[1768082423844,0.19220891,906.06,904.98,0.72023148]
[1768082424046,0.19220891,906.06,904.99,0.72023148]
[1768082424243,0.19220891,906.06,905.0,0.72023148]
[1768082424440,0.19220891,906.06,905.01,0.72023148]
[1768082424740,0.19220891,906.06,905.02,0.72023148]
[1768082424945,0.19220891,906.06,905.03,0.72023148]
[1768082425146,0.19220891,906.06,905.04,0.72023148]
[1768082425442,0.19220891,906.06,905.05,0.72023148]
[1768082425642,0.19220891,906.06,905.06,0.72023148]
[1768082425842,0.19220891,906.06,905.07,0.72023148]
[1768082426042,0.19220891,906.06,905.08,0.72023148]
[1768082426242,0.19220891,906.06,905.09,0.72023148]
[1768082426545,0.19220891,906.06,904.91,2.342]
[1768082426845,0.19220891,906.06,904.92,0.71748619]
[1768082427143,0.19220891,906.06,904.93,0.71748619]
[1768082427344,0.19220891,906.06,904.94,0.71748619]
[1768082427543,0.19220891,906.06,904.95,0.71748619]
[1768082427746,0.19220891,906.06,904.96,0.71748619]
[1768082428046,0.19220891,906.06,904.97,0.71748619]
[1768082428244,0.19220891,906.06,904.98,0.71748619]
[1768082428544,0.19220891,906.06,904.99,0.71748619]
[1768082428845,0.19220891,906.06,905.0,0.71748619]
[1768082429042,0.19220891,906.06,905.01,0.71748619]
[1768082429246,0.19220891,906.06,905.02,0.71748619]
[1768082429540,0.19220891,906.06,904.91,2.342]
[1768082429541,0.19220891,906.06,905.03,0.71748619]
[1768082429742,0.19220891,906.06,905.04,0.71748619]
[1768082429943,0.19220891,906.06,905.05,0.71748619]
[1768082430142,0.19220891,906.06,905.06,0.71748619]
[1768082430342,0.19220891,906.06,905.07,0.71748619]
[1768082430542,0.19220891,906.06,905.08,0.71748619]
[1768082430746,0.19220891,906.06,905.09,0.71748619]
[1768082430942,0.19220891,906.06,905.1,0.71748619]
[1768082431145,0.19220891,906.06,905.11,0.71779564]
[1768082431346,0.19220891,906.06,904.91,2.342]
[1768082431542,0.19220891,906.06,904.92,0.71776859]
[1768082431745,0.19220891,906.06,904.93,0.71776859]
[1768082432045,0.19220891,906.06,904.94,0.71776859]
[1768082432245,0.19220891,906.06,904.91,2.342]
[1768082432246,0.19220891,906.06,904.95,0.71776859]
[1768082432444,0.19220891,906.06,904.96,0.71776859]
[1768082432646,0.19220891,906.06,904.97,0.71776859]
[1768082432846,0.19220891,906.06,904.98,0.71776859]
[1768082433046,0.19220891,906.06,904.99,0.71776859]
[1768082433246,0.19220891,906.06,905.0,0.71776859]
[1768082433451,0.19220891,906.06,905.01,0.71776859]
[1768082433649,0.19220891,906.06,905.02,0.71776859]
[1768082433848,0.19220891,906.06,905.03,0.71776859]
[1768082434052,0.19220891,906.06,905.04,0.71776859]
[1768082434247,0.19220891,906.06,905.05,0.71776859]
[1768082434448,0.19220891,906.06,905.06,0.71776859]
[1768082434649,0.19220891,906.06,905.07,0.71776859]
[1768082434848,0.19220891,906.06,905.08,0.71776859]
[1768082435052,0.19220891,906.06,905.09,0.71776859]
[1768082435353,0.19220891,906.06,905.1,0.71776859]
[1768082435652,0.19220891,906.06,905.11,0.71776859]
[1768082435855,0.19220891,906.06,905.12,0.71776859]
[1768082436053,0.19220891,906.06,905.13,0.71776859]
[1768082436254,0.19220891,906.06,905.14,0.71759101]
[1768082436453,0.19220891,906.06,905.15,0.71759101]
[1768082436754,0.19220891,906.06,904.91,2.342]
[1768082436949,0.19220891,906.06,904.92,0.7175935]
[1768082437150,0.19220891,906.06,904.93,0.7175935]
[1768082437453,0.19220891,906.06,904.94,0.7175935]
[1768082437654,0.19220891,906.06,904.95,0.7175935]
[1768082437850,0.19220891,906.06,904.96,0.7175935]
[1768082438050,0.19220891,906.06,904.97,0.7175935]
[1768082438255,0.19220891,906.06,904.98,0.7175935]
[1768082438455,0.19220891,906.06,904.99,0.7175935]
[1768082438656,0.19220891,906.06,904.91,2.342]
[1768082438952,0.19220891,906.06,904.92,0.71767981]
[1768082439252,0.19220891,906.06,904.93,0.71767981]
[1768082439455,0.19220891,906.06,904.94,0.71767981]